[Event "Romanian Superleague 2022"]
[Site "Oradea"]
[Date "2022.09.28"]
[Round "8.13"]
[White "Berkes, Ferenc"]
[Black "Pranav Vijay"]
[Result "1/2-1/2"]
[ECO "A07"]
[WhiteElo "2651"]
[BlackElo "2265"]
[Annotator "TA"]
[PlyCount "131"]
[EventDate "2022.09.21"]
[EventType "team-tourn"]
[EventCountry "ROU"]
[SourceTitle "playchess.com"]
[Source "ChessBase"]
[SourceQuality "1"]
[TimeControl "40/5400+30:1800+30"]

{[%evp 9,131,24,20,10,21,14,22,26,25,12,40,39,40,42,36,32,35,33,16,13,30,40,38,43,73,73,73,67,71,64,64,71,60,61,69,67,67,72,77,76,76,62,75,40,70,68,72,59,86,73,73,73,73,73,74,77,77,70,77,70,65,68,68,49,39,25,25,25,25,25,25,25,25,25,25,25,60,60,60,60,60,25,28,14,25,8,8,8,8,8,8,8,8,5,8,8,15,4,8,4,4,4,4,4,4,4,4,4,4,4,4,4,4,4,8,8,8,8,15,8,8,0,15,15]} 1. Nf3 {[%emt 0:00:05]} Nf6 {[%emt 0:00:09]} 2. g3 {[%emt 0:00:10]} d5 {[%emt 0:00:07]} 3. Bg2 {[%emt 0:00:08]} c6 {[%emt 0:00:11]} 4. O-O {[%emt 0:00:11]} Bg4 {[%emt 0:00:08]} 5. h3 {[%emt 0:00:15]} Bh5 {[%emt 0:01:21]} 6. d4 {[%emt 0:00:18][%cal Oc2c4] A07: Réti Opening: New York and Capablanca Systems.} Nbd7 {[%emt 0:01:45]} 7. c4 {[%emt 0:00:54]} e6 {[%emt 0:00:44]} 8. cxd5 {[%emt 0:00:16]} cxd5 {[%emt 0:04:51]} 9. Nc3 {[%emt 0:04:24]} Bd6 {[%emt 0:03:59]} 10. Qb3 {[%emt 0:01:54]} Qb6 {[%emt 0:02:58]} 11. e4 {[%emt 0:03:13]} Nxe4 {[%emt 0:27:49]} 12. Nxe4 {[%emt 0:00:21]} dxe4 {[%emt 0:00:08]} 13. Ng5 {[%emt 0:00:14]} Qxb3 {[%emt 0:16:01]} 14. axb3 {[%emt 0:00:10]} Nf6 {[%emt 0:01:42]} 15. Nxe4 {[%emt 0:00:19]} Nxe4 {[%emt 0:00:08]} 16. Bxe4 {[%emt 0:00:05]} Rb8 {[%emt 0:02:54]} 17. Rxa7 {[%emt 0:13:55]} Be2 {[%emt 0:01:07]} 18. Re1 {[%emt 0:00:38]} Ba6 {[%emt 0:00:07] [#]} 19. Be3 $146 {[%emt 0:09:37] White is much more active. The black rooks are badly placed.} ({Predecessor:} 19. Bd2 O-O 20. Rc1 Rfd8 21. b4 h6 22. b5 Bxb5 23. Rxb7 Rxb7 24. Bxb7 Be7 25. Rc8 Rxc8 26. Bxc8 {1-0 (78) Svane,R (2613)-Mirimanian,H (2268) Chess.com INT 2020}) 19... O-O {[%emt 0:03:16]} 20. Rc1 {[%emt 0:01:18]} Rfd8 {[%emt 0:01:42]} 21. Bg2 {[%emt 0:03:05]} Kf8 {[%emt 0:05:26]} 22. Bf1 {[%emt 0:02:49]} Bxf1 {[%emt 0:01:29]} 23. Kxf1 {[%emt 0:00:06]} Ke8 {[%emt 0:01:42]} 24. Ke2 {[%emt 0:01:00]} Rd7 {[%emt 0:01:07]} 25. g4 {[%emt 0:07:23]} Rbd8 {[%emt 0:04:24]} 26. g5 {[%emt 0:02:59]} e5 {[%emt 0:03:25]} 27. dxe5 {[%emt 0:10:46]} Bxe5 {[%emt 0:00:07]} 28. Rc4 {[%emt 0:00:07]} Bxb2 {[%emt 0:02:20]} 29. Rb4 {[%emt 0:02:40]} Rb8 {[%emt 0:00:28]} 30. Rh4 {[%emt 0:01:44]} f6 {[%emt 0:09:52]} 31. Rxh7 {[%emt 0:04:08]} Kf7 {[%emt 0:00:06]} 32. gxf6 {[%emt 0:00:11]} Bxf6 {[%emt 0:00:33] [#] Strongly threatening ...Kg6.} 33. Ra5 $1 {[%emt 0:07:30]} Rc8 {[%emt 0:00:42]} 34. Rhh5 {[%emt 0:02:02]} Rc2+ {[%emt 0:00:18]} 35. Kf3 $1 {[%emt 0:00:18]} Rc3 {[%emt 0:00:51]} 36. Rab5 {[%emt 0:07:54]} Bd4 {[%emt 0:01:09]} 37. Rh4 {[%emt 0:00:39]} Bxe3 $1 {[%emt 0:02:17]} 38. fxe3 $11 {[%emt 0:00:07][%mdl 4096] Endgame KRR-KRR} Rdd3 $1 {[%emt 0:01:27]} 39. Rxb7+ {[%emt 0:00:49]} Kg8 {[%emt 0:00:07]} 40. Rb8+ {[%emt 0:00:00]} Kf7 {[%emt 0:00:00]} 41. Rf4+ {[%emt 0:07:37]} Kg6 $1 {[%emt 0:00:23]} 42. Rg4+ {[%emt 0:01:54]} Kh7 {[%emt 0:00:41]} 43. Re8 {[%emt 0:05:02]} Rxb3 {[%emt 0:02:43]} 44. Re7 {[%emt 0:00:06]} Kh6 {[%emt 0:01:47]} 45. Re6+ {[%emt 0:04:18]} Kh7 {[%emt 0:00:19]} 46. h4 {[%emt 0:00:09]} Rd7 {[%emt 0:00:46]} 47. Rf4 {[%emt 0:01:44]} Rb1 {[%emt 0:00:19] The position is equal.} 48. Re5 {[%emt 0:02:52]} Rf1+ {[%emt 0:01:13]} 49. Ke4 {[%emt 0:00:06]} Rg1 {[%emt 0:00:09]} 50. Rh5+ {[%emt 0:01:59]} Kg6 {[%emt 0:02:08]} 51. Rd5 {[%emt 0:00:05]} Re7+ {[%emt 0:00:47]} 52. Re5 {[%emt 0:00:06]} Ra7 {[%emt 0:00:10]} 53. h5+ {[%emt 0:00:27]} Kh7 {[%emt 0:01:17]} 54. Rff5 {[%emt 0:00:59]} Ra4+ {[%emt 0:01:26]} 55. Kd5 {[%emt 0:01:09]} Rd1+ {[%emt 0:00:57]} 56. Ke6 {[%emt 0:03:07]} Ra6+ {[%emt 0:01:27]} 57. Kf7 {[%emt 0:00:47]} Rd7+ {[%emt 0:01:48]} 58. Re7 {[%emt 0:00:18]} Rxe7+ {[%emt 0:00:30]} 59. Kxe7 {[%emt 0:00:07] KR-KR} g6 {[%emt 0:00:16]} 60. hxg6+ {[%emt 0:02:45]} Kxg6 {[%emt 0:00:05]} 61. Rd5 {[%emt 0:00:06] [#] White threatens Rd6+ and mate.} Ra7+ {[%emt 0:00:57]} 62. Ke6 {[%emt 0:00:19]} Ra6+ {[%emt 0:00:36]} 63. Rd6 {[%emt 0:00:21]} Ra4 {[%emt 0:00:07]} 64. Rd4 {[%emt 0:02:31]} Ra6+ {[%emt 0:00:06]} 65. Rd6 {[%emt 0:00:06]} Ra4 {[%emt 0:00:07]} 66. Ke5+ {[%emt 0:00:09] Weighted Error Value: White=0.04 (flawless) /Black=0.04 (flawless)} 1/2-1/2

[Event "Romanian Superleague 2022"]
[Site "Oradea"]
[Date "2022.09.28"]
[Round "8.14"]
[White "Grigore, George-Gabriel"]
[Black "Lupulescu, Constantin"]
[Result "0-1"]
[ECO "E35"]
[WhiteElo "2455"]
[BlackElo "2614"]
[Annotator "TA"]
[PlyCount "94"]
[EventDate "2022.09.21"]
[EventType "team-tourn"]
[EventCountry "ROU"]
[SourceTitle "playchess.com"]
[Source "ChessBase"]
[SourceQuality "1"]
[TimeControl "40/5400+30:1800+30"]

{[%evp 20,94,10,0,0,0,0,0,0,-9,-7,-15,7,0,7,-14,0,-36,-12,-12,-4,-5,-9,-35,-28,-24,-20,-27,-17,-26,-12,-33,-43,-57,-18,-18,-20,-37,-22,-20,-23,-110,-110,-110,-96,-108,-104,-99,-101,-129,-129,-129,-129,-129,-129,-268,-268,-671,-681,-1427,-1729,-1753,-1536,-1167,-793,-1833,-1825,-1645,-1411,-1415,-1389,-1329,-1298,-1211,-1106,-841,-552]} 1. d4 {[%emt 0:00:08] Marin,M} Nf6 {[%emt 0:00:03]} 2. c4 {[%emt 0:00:09]} e6 {[%emt 0:00:02]} 3. Nc3 {[%emt 0:00:10]} Bb4 {[%emt 0:00:04]} 4. Qc2 {[%emt 0:00:11]} d5 {[%emt 0:00:03]} 5. cxd5 {[%emt 0:00:10]} exd5 {[%emt 0:00:04]} 6. Bg5 {[%emt 0:00:41]} h6 {[%emt 0:00:05]} 7. Bxf6 {[%emt 0:07:01]} Qxf6 {[%emt 0:00:08]} 8. a3 {[%emt 0:00:11]} Bxc3+ {[%emt 0:00:07]} 9. Qxc3 {[%emt 0:00:07]} O-O {[%emt 0:00:20]} 10. e3 {[%emt 0:00:26]} Bf5 {[%emt 0:00:21]} 11. Nf3 {[%emt 0:06:39]} Nd7 {[%emt 0:03:12] E35: Nimzo-Indian: Classical: 4...d5 5 cxd5 exd5.} 12. Be2 {[%emt 0:05:35]} Rfc8 {[%emt 0:00:48]} 13. O-O {[%emt 0:09:16]} c5 {[%emt 0:00:38] [#] The position is equal.} 14. Rfc1 $146 {[%emt 0:00:29][%cal Rd4c5]} ({Predecessor:} 14. b3 Qb6 15. dxc5 Nxc5 16. b4 Na4 17. Qe5 Nc3 18. Rfe1 Bg4 19. Bd3 Bxf3 20. gxf3 {½-½ (87) Radjabov,T (2793)-Grischuk,A (2764) London 2013 CBM 154 [Marin,M]}) 14... c4 {[%emt 0:07:56]} 15. a4 {[%emt 0:02:44]} Qb6 {[%emt 0:10:21] Against b3} 16. Nd2 {[%emt 0:03:37]} (16. a5 $5 {[%cal Ra5b6]} Qc6 17. Nd2 $11) 16... Rc6 {[%emt 0:10:11]} 17. Bf3 {[%emt 0:14:41]} Nf6 {[%emt 0:00:32][%cal Bd7f6,Bf6d5,Bd5b4][%mdl 32]} 18. h3 {[%emt 0:13:27]} Rac8 {[%emt 0:01:41]} 19. Re1 {[%emt 0:05:58]} a5 {[%emt 0:05:58]} 20. e4 {[%emt 0:14:23]} dxe4 {[%emt 0:01:39]} 21. Bxe4 {[%emt 0:00:20]} Bxe4 {[%emt 0:10:38]} 22. Nxe4 {[%emt 0:00:13]} Nd5 {[%emt 0:00:13]} 23. Qd2 {[%emt 0:00:35]} Rg6 {[%emt 0:03:55]} 24. Nc3 {[%emt 0:05:24]} Qc6 {[%emt 0:05:23]} 25. g3 {[%emt 0:00:47]} Nb4 {[%emt 0:02:01]} 26. Re3 {[%emt 0:04:44]} Rd8 {[%emt 0:07:41]} 27. Kh2 {[%emt 0:00:58]} Rf6 $40 {[%emt 0:02:41][%cal Od8d4][%mdl 128] Black mounts an attack.} 28. Rf1 {[%emt 0:00:56]} Nd5 {[%emt 0:03:44]} 29. Re5 {[%emt 0:00:56]} Nxc3 {[%emt 0:00:28]} 30. Qxc3 {[%emt 0:01:11]} (30. bxc3 $11 Qxa4 31. Rb1) 30... b6 $17 {[%emt 0:01:19]} ({Of course not} 30... Qxa4 $6 31. Rxa5 Qd7 32. Qxc4 $11) 31. Rb5 {[%emt 0:00:45]} Rf3 {[%emt 0:00:41] Black is more active.} 32. Rxb6 {[%emt 0:02:57]} Qxb6 {[%emt 0:00:47]} 33. Qxf3 {[%emt 0:00:06]} Qxb2 {[%emt 0:01:02][%mdl 4096] Endgame KQR-KQR} 34. Qf5 {[%emt 0:00:55]} Qxd4 {[%emt 0:15:32]} 35. Qxa5 {[%emt 0:00:13]} c3 {[%emt 0:00:11] aiming for ...c2.} 36. Qc7 {[%emt 0:00:33] [#]} Rd5 {[%emt 0:01:34]} 37. a5 {[%emt 0:00:39] [#] Loses the game.} (37. Qf4 $17 {was worth a try.}) 37... Rc5 $1 $19 {[%emt 0:01:13]} 38. Qb8+ {[%emt 0:00:40]} (38. Qa7) 38... Kh7 {[%emt 0:00:04] Strongly threatening ...c2. Black is clearly winning.} 39. Qf4 {[%emt 0:00:31]} Qxf4 {[%emt 0:00:45]} 40. gxf4 {[%emt 0:00:00]} Rxa5 {[%emt 0:00:00] KR-KR} 41. Rc1 {[%emt 0:00:12]} Rc5 {[%emt 0:00:15] Threatens to win with ...Kg6.} 42. Rc2 {[%emt 0:00:48]} Kg6 {[%emt 0:01:34] Hoping for ...Kf5.} 43. Kg3 {[%emt 0:00:04]} Kf5 {[%emt 0:01:34] White must now prevent ...Ke4.} 44. Kf3 {[%emt 0:00:03]} h5 {[%emt 0:02:07]} 45. Ke3 {[%emt 0:00:11]} Rc8 {[%emt 0:00:37]} 46. Kf3 {[%emt 0:00:15]} g6 {[%emt 0:02:13]} 47. Ke3 {[%emt 0:00:05]} Rc4 {[%emt 0:00:42] Weighted Error Value: White=0.51/Black=0.09 (flawless)} 0-1

[Event "Romanian Superleague 2022"]
[Site "Oradea"]
[Date "2022.09.28"]
[Round "8.15"]
[White "Jianu, Vlad-Cristian"]
[Black "Istratescu, Andrei"]
[Result "1-0"]
[ECO "E05"]
[WhiteElo "2511"]
[BlackElo "2408"]
[Annotator "TA"]
[PlyCount "41"]
[EventDate "2022.09.21"]
[EventType "team-tourn"]
[EventCountry "ROU"]
[SourceTitle "playchess.com"]
[Source "ChessBase"]
[SourceQuality "1"]
[TimeControl "40/5400+30:1800+30"]

{[%evp 22,41,16,0,22,22,23,28,24,11,34,30,38,13,85,76,102,64,67,56,162,136]} 1. d4 {[%emt 0:00:03]} Nf6 {[%emt 0:00:27]} 2. Nf3 {[%emt 0:00:07]} d5 {[%emt 0:05:23]} 3. g3 {[%emt 0:00:12]} e6 {[%emt 0:04:10]} 4. Bg2 {[%emt 0:00:22]} Be7 {[%emt 0:01:39]} 5. O-O {[%emt 0:00:08]} O-O {[%emt 0:00:03]} 6. c4 {[%emt 0:00:14]} dxc4 {[%emt 0:00:14]} 7. Qc2 {[%emt 0:01:10]} a6 {[%emt 0:00:41]} 8. a4 {[%emt 0:01:40]} Bd7 {[%emt 0:02:00]} 9. Qxc4 {[%emt 0:00:09]} Bc6 {[%emt 0:00:30]} 10. Bg5 {[%emt 0:00:09]} a5 {[%emt 0:21:36]} 11. Nc3 {[%emt 0:11:38]} Na6 {[%emt 0:02:38]} 12. Rfd1 {[%emt 0:03:07]} Nb4 {[%emt 0:04:34] E05: Open Catalan: 5 Nf3 Be7.} (12... Bd5 $5 13. Nxd5 exd5 $11) 13. Rac1 {[%emt 0:00:14]} h6 {[%emt 0:24:26]} 14. Bxf6 {[%emt 0:08:41]} Bxf6 {[%emt 0:00:50] White has an edge.} 15. e4 {[%emt 0:00:07] [#]} Qb8 $146 {[%emt 0:02:19]} ({Predecessor:} 15... Bd7 16. h4 c6 17. Qe2 Be7 18. Ne5 Bd6 19. Nc4 Bc7 20. e5 Nd5 21. Ne4 Nb6 {1-0 (60) Le,T (2501)-Djordjevic,V (2347) Chess.com INT 2020}) 16. b3 {[%emt 0:06:38]} Bd7 {[%emt 0:05:56]} 17. h4 {[%emt 0:08:58]} g6 {[%emt 0:16:20]} (17... Rd8 $11) 18. Qe2 {[%emt 0:13:11][%cal Oh4h5]} Rd8 {[%emt 0:01:12]} 19. Qe3 {[%emt 0:15:35]} Bg7 {[%emt 0:00:11]} 20. h5 {[%emt 0:01:56]} gxh5 {[%emt 0:00:57] [#]} ({Black should try} 20... g5 $1 $14) 21. Ne2 $1 {[%emt 0:02:12] Weighted Error Value: White=0.11 (very precise) /Black=0.34} 1-0

[Event "Romanian Superleague 2022"]
[Site "Oradea"]
[Date "2022.09.28"]
[Round "8.16"]
[White "Vedmediuc, Serghei"]
[Black "Parligras, Mircea-Emilian"]
[Result "0-1"]
[ECO "B51"]
[WhiteElo "2430"]
[BlackElo "2560"]
[Annotator "TA"]
[PlyCount "80"]
[EventDate "2022.09.21"]
[EventType "team-tourn"]
[EventCountry "ROU"]
[SourceTitle "playchess.com"]
[Source "ChessBase"]
[SourceQuality "1"]
[TimeControl "40/5400+30:1800+30"]

{[%evp 12,80,15,10,16,14,17,4,14,0,11,12,7,-4,0,0,0,0,2,-7,-3,-8,29,29,40,1,9,2,19,0,38,27,52,47,37,17,8,6,5,9,0,-40,-33,-54,-55,-55,-66,-60,-60,-100,-105,-139,-148,-154,-160,-279,-279,-270,-262,-269,-239,-445,-323,-868,-270,-235,-224,-375,-412,-979,-936]} 1. e4 {[%emt 0:00:07]} c5 {[%emt 0:00:11]} 2. Nf3 {[%emt 0:00:07]} d6 {[%emt 0:00:06]} 3. Bb5+ {[%emt 0:00:26]} Nd7 {[%emt 0:00:11]} 4. c3 {[%emt 0:00:07]} Ngf6 {[%emt 0:00:16]} 5. Qe2 {[%emt 0:00:11]} a6 {[%emt 0:00:39]} 6. Ba4 {[%emt 0:00:40]} b5 {[%emt 0:00:57]} 7. Bc2 {[%emt 0:00:16]} Bb7 {[%emt 0:00:26] B51: Sicilian: Moscow Variation (3 Bb5+) without 3...Bd7.} 8. d4 {[%emt 0:01:50]} e6 {[%emt 0:00:33]} 9. O-O {[%emt 0:01:18]} Be7 {[%emt 0:00:22] The position is equal.} 10. Re1 {[%emt 0:05:01]} O-O {[%emt 0:00:16]} 11. Nbd2 {[%emt 0:00:44]} Qc7 {[%emt 0:00:49]} 12. Nf1 {[%emt 0:05:06]} cxd4 $5 {[%emt 0:01:52][%mdl 4] Leaves trodden paths.} 13. cxd4 {[%emt 0:00:24]} Rfc8 {[%emt 0:00:05]} 14. Bd3 {[%emt 0:00:38]} e5 {[%emt 0:01:13]} 15. Ng3 {[%emt 0:04:01]} exd4 {[%emt 0:04:57]} 16. Nxd4 {[%emt 0:16:57] [#]} Ne5 $146 {[%emt 0:04:26]} ({Predecessor:} 16... g6 17. b3 Re8 18. Bb2 Bf8 19. Qd2 Ne5 20. Rac1 Qb6 21. Bb1 Nfg4 22. h3 Bh6 {1-0 (42) Ter Sahakyan,S (2593)-Salem,A (2615) Martuni 2015}) 17. Ndf5 {[%emt 0:12:17]} Bf8 {[%emt 0:06:21]} 18. Bf4 {[%emt 0:00:59]} (18. Bg5 $5 {[%cal Rg5f6]}) 18... g6 {[%emt 0:05:13]} 19. Nh6+ {[%emt 0:05:36]} Kh8 {[%emt 0:02:04]} 20. Rad1 {[%emt 0:05:22]} (20. Red1 {with more complications.} Qe7 21. a4 bxa4 22. Rxa4 Nfd7 23. Bxa6 Bxa6 24. Rxa6 Rxa6 25. Qxa6 Rb8 26. Qe2) 20... Ng8 {[%emt 0:05:44]} 21. Nxg8 {[%emt 0:09:21]} ({Don't play} 21. Rc1 Qe7 22. Nxg8 Kxg8 $11) 21... Kxg8 {[%emt 0:00:05]} 22. Bb1 {[%emt 0:00:06]} Re8 {[%emt 0:10:57]} 23. Nf1 {[%emt 0:11:31]} Re6 {[%emt 0:16:05]} 24. Ne3 {[%emt 0:02:43]} (24. f3 {looks sharper.} f5 25. Qc2 Qe7 26. Bxe5 Rxe5 27. Qb3+) 24... Rae8 {[%emt 0:02:25]} 25. b3 {[%emt 0:03:50]} Nd7 {[%emt 0:02:42][%cal Be5d7,Bd7f6,Bf6h5][%mdl 32]} 26. Qd2 {[%emt 0:04:23]} Nf6 {[%emt 0:10:33]} 27. f3 {[%emt 0:00:06]} Nh5 $1 {[%emt 0:00:04]} 28. Bg5 {[%emt 0:02:50]} Qc5 {[%emt 0:00:07]} 29. Bh4 {[%emt 0:01:07]} d5 $1 {[%emt 0:00:25][%cal Bd6d5,Bd5e4,Be4f3,Bf3g2][%mdl 32]} 30. Rc1 {[%emt 0:04:54]} Qb4 {[%emt 0:01:32]} 31. Qxb4 {[%emt 0:00:41]} Bxb4 {[%emt 0:00:05]} 32. Red1 {[%emt 0:00:41]} dxe4 {[%emt 0:00:24]} 33. Rc7 {[%emt 0:00:01]} (33. fxe4 $17 Bxe4 34. Nc2) 33... exf3 $19 {[%emt 0:09:33]} 34. Rxb7 {[%emt 0:00:33]} Rxe3 {[%emt 0:00:51][%cal Be6e3,Be3c3,Bc3b3,Bb3b2][%mdl 32]} 35. Bf2 {[%emt 0:00:01]} Rc3 {[%emt 0:02:48]} 36. a4 $2 {[%emt 0:01:39] [#]} (36. Rbd7 {is a better defense.}) 36... fxg2 {[%emt 0:06:09]} 37. axb5 $2 {[%emt 0:00:04]} (37. Kxg2 Bc5 38. Rc7 Nf4+ 39. Kh1) 37... axb5 $2 {[%emt 0:00:47]} (37... Nf4 {( -> ...Re2)} 38. bxa6 Bc5 39. Bxc5 Rxc5) 38. Rxb5 {[%emt 0:00:24]} Rxb3 {[%emt 0:00:56]} 39. Ba2 $2 {[%emt 0:01:57]} (39. Rd4 {might work better.} Rxb1+ 40. Kxg2) 39... Rb2 {[%emt 0:01:19] [#] White must now prevent ...Nf4.} 40. Bc4 {[%emt 0:00:00]} (40. Rb1 $142 Rxa2 41. R5xb4) 40... Nf4 {[%emt 0:00:00] Weighted Error Value: White=0.63/Black=0.21 (precise)} 0-1

[Event "Romanian Superleague 2022"]
[Site "Oradea"]
[Date "2022.09.28"]
[Round "8.17"]
[White "Gavrilescu, David"]
[Black "Manea, Alexandru"]
[Result "1-0"]
[ECO "C20"]
[WhiteElo "2523"]
[BlackElo "2326"]
[Annotator "TA"]
[PlyCount "37"]
[EventDate "2022.09.21"]
[EventType "team-tourn"]
[EventCountry "ROU"]
[SourceTitle "playchess.com"]
[Source "ChessBase"]
[SourceQuality "1"]
[TimeControl "40/5400+30:1800+30"]

{[%evp 9,37,19,46,28,139,117,130,124,147,148,146,145,160,158,167,130,168,131,129,116,106,18,25,29,129,130,122,114,29997,29998]} 1. e4 {[%emt 0:00:11]} e5 {[%emt 0:00:33]} 2. Ne2 {[%emt 0:00:10]} Nf6 {[%emt 0:04:38]} 3. d4 {[%emt 0:00:22]} d5 {[%emt 0:02:25]} 4. exd5 {[%emt 0:06:03]} exd4 {[%emt 0:00:12]} 5. Qxd4 {[%emt 0:00:48]} Nxd5 {[%emt 0:04:50]} 6. Nbc3 {[%emt 0:02:20] [#] C20: 1 e4 e5: Unusual White second moves.} Nb4 $146 {[%emt 0:00:25]} (6... Be6 $11 {remains equal.}) ({Predecessor:} 6... Be6 7. Nf4 Nc6 8. Bb5 Nxf4 9. Qxd8+ Rxd8 10. Bxf4 Bd6 11. Bxd6 Rxd6 12. Ne4 Rd5 13. Bxc6+ bxc6 {1-0 (53) Ivanchuk,V (2738)-Anand,V (2786) Leuven 2017}) 7. Qxd8+ $16 {[%emt 0:00:22]} Kxd8 {[%emt 0:00:01]} 8. Bg5+ {[%emt 0:00:09] White is better.} Be7 {[%emt 0:11:15]} 9. O-O-O+ {[%emt 0:00:29]} Bd7 {[%emt 0:00:04]} 10. Bxe7+ {[%emt 0:09:52]} Kxe7 {[%emt 0:00:57]} 11. Nf4 {[%emt 0:00:05]} Rc8 {[%emt 0:07:27]} 12. Bc4 {[%emt 0:05:59]} Be8 {[%emt 0:02:10]} 13. Rhe1+ {[%emt 0:02:18]} Kf8 {[%emt 0:00:01]} 14. Re3 {[%emt 0:22:20][%cal Of4e6]} Nd7 {[%emt 0:03:43]} 15. Ne4 {[%emt 0:13:43] White is much more active. The black rooks are badly placed.} (15. Be2 $16) 15... Nb6 $1 $11 {[%emt 0:15:39]} 16. Bb3 $36 {[%emt 0:03:57][%mdl 2048] Strongly threatening c3. White is pushing.} Rd8 {[%emt 0:04:13]} (16... c5 $1 $11 {keeps the balance.}) 17. Rxd8 $16 {[%emt 0:01:09]} Rxd8 {[%emt 0:00:08]} 18. Ng5 {[%emt 0:00:05]} h6 {[%emt 0:15:23][%mdl 8192] [#]} (18... c5 $16) 19. Ng6+ $1 {[%emt 0:00:06][%mdl 512] Weighted Error Value: White=0.18 (very precise) /Black=0.62} 1-0

[Event "Romanian Superleague 2022"]
[Site "Oradea"]
[Date "2022.09.28"]
[Round "8.18"]
[White "Antonica, Dragos-Andrei"]
[Black "Costachi, Mihnea"]
[Result "1/2-1/2"]
[ECO "D03"]
[WhiteElo "2321"]
[BlackElo "2470"]
[Annotator "TA"]
[PlyCount "47"]
[EventDate "2022.09.21"]
[EventType "team-tourn"]
[EventCountry "ROU"]
[SourceTitle "playchess.com"]
[Source "ChessBase"]
[SourceQuality "1"]
[TimeControl "40/5400+30:1800+30"]

{[%evp 21,47,0,0,-1,8,15,13,16,13,0,0,7,29,15,10,16,10,0,29,8,5,8,10,9,13,4,17,10]} 1. d4 {[%emt 0:00:04]} Nf6 {[%emt 0:00:12]} 2. Nf3 {[%emt 0:00:08]} g6 {[%emt 0:00:27]} 3. Bg5 {[%emt 0:00:14]} Bg7 {[%emt 0:00:05]} 4. Nbd2 {[%emt 0:00:14]} d5 {[%emt 0:03:29]} 5. e3 {[%emt 0:01:39]} c5 {[%emt 0:02:15]} 6. c3 {[%emt 0:00:17]} Qb6 {[%emt 0:00:26]} 7. Qb3 {[%emt 0:01:00]} Nc6 {[%emt 0:10:21]} 8. Be2 {[%emt 0:04:28]} O-O {[%emt 0:05:50]} 9. O-O {[%emt 0:01:24]} Bf5 {[%emt 0:08:35]} 10. dxc5 {[%emt 0:02:48] has lost popularity (10.a4).} Qxc5 {[%emt 0:00:55]} 11. Nd4 {[%emt 0:00:15][%cal Bf3d4,Bd4b3,Bb3c5][%mdl 32]} Bc8 {[%emt 0:05:18]} 12. Rfd1 {[%emt 0:07:19] D03: 1 d4 d5 2 Nf3 Nf6 3 Bg5, including Torre Attack with early ...d5.} e5 {[%emt 0:05:43]} 13. Qb5 {[%emt 0:10:13]} Qd6 {[%emt 0:03:32]} 14. N4b3 {[%emt 0:03:10]} a6 {[%emt 0:08:50]} 15. Qc5 {[%emt 0:20:47] [#]} Qxc5 $146 {[%emt 0:05:55]} ({Predecessor:} 15... Qe6 16. c4 b6 17. cxd5 Nxd5 18. Qc4 h6 19. Bf3 Ncb4 20. e4 Nf4 21. Bxf4 Qxc4 22. Nxc4 {½-½ (22) Ye,R (2545)-Ftacnik,L (2590) Bacolod 1991}) 16. Nxc5 {[%emt 0:00:42]} h6 {[%emt 0:04:13]} 17. Bxf6 {[%emt 0:18:32]} Bxf6 {[%emt 0:00:04]} 18. Ndb3 {[%emt 0:00:09]} Rd8 {[%emt 0:03:37]} 19. Rd2 {[%emt 0:04:53]} d4 {[%emt 0:04:55]} 20. Bf3 {[%emt 0:04:30]} dxc3 {[%emt 0:03:29] The position is equal.} 21. Rxd8+ {[%emt 0:01:37]} Nxd8 {[%emt 0:00:05]} 22. bxc3 {[%emt 0:00:09]} Rb8 {[%emt 0:00:07]} 23. Rd1 {[%emt 0:03:09]} Be7 {[%emt 0:09:24]} 24. Nd7 {[%emt 0:06:19] An interesting draw.  Weighted Error Value: White=0.05 (flawless) /Black=0.05 (flawless)} 1/2-1/2